fUSD/lending_fUSD_20250929
["ID","MTS","AMOUNT","RATE_DAILY","PERIOD"]
[388412294,1759160738404,150.0,0.0001606,2]
[388412295,1759160738927,150.0,0.00016214,2]
[388412296,1759160738971,150.0,0.00016369,2]
[388412297,1759160739022,150.0,0.00016523,2]
[388412298,1759160739127,150.0,0.00015288,2]
[388412299,1759160739166,150.0,0.00015571,2]
[388412300,1759160739214,150.0,0.00015854,2]
[388412301,1759160739259,150.0,0.0001642,2]
[388412302,1759160739333,150.0,0.00015288,2]
[388412303,1759160739391,150.0,0.00015288,2]
[388412304,1759160739434,150.0,0.00015854,2]
[388412305,1759160739477,150.0,0.0001642,2]
[388412306,1759160740561,150.0,0.00015288,2]
[388412307,1759160740953,150.0,0.00015288,2]
[388412308,1759160741010,150.0,0.00016137,2]
[388412310,1759160743221,164.34,0.00015857,2]
[388412315,1759160747772,150.0,0.00015288,2]
[388412316,1759160747841,150.0,0.000155,2]
[388412317,1759160747916,150.0,0.00015712,2]
[388412318,1759160747954,150.0,0.00015925,2]
[388412319,1759160748026,150.0,0.00016137,2]
[388412320,1759160748084,150.0,0.00016349,2]
[388412321,1759160748152,150.0,0.00016562,2]
[388412322,1759160750112,150.0,0.00015288,2]
[388412323,1759160750159,150.0,0.00015571,2]
[388412324,1759160750197,150.0,0.00015854,2]
[388412325,1759160750238,150.0,0.00016137,2]
[388412326,1759160750276,150.0,0.0001642,2]
[388412327,1759160750365,150.0,0.00016137,2]
[388412328,1759160750441,150.0,0.00015288,2]
[388412329,1759160750482,150.0,0.00015458,2]
[388412330,1759160750562,150.0,0.00015627,2]
[388412331,1759160750630,150.0,0.00015797,2]
[388412332,1759160750687,150.0,0.00015967,2]
[388412333,1759160750760,150.0,0.00016137,2]
[388412334,1759160750815,150.0,0.00016307,2]
[388412335,1759160750881,150.0,0.00016477,2]
[388412353,1759160816665,820.87,0.00015951,2]
[388412378,1759160876626,200.0,0.00015943,2]
[388412397,1759160984466,250.0,0.0001592,2]
[388412407,1759161015379,5106.38,0.00015879,2]
[388412430,1759161031526,-150.0,0.00016647,2]
[388412432,1759161031537,-835.79570415,0.0001665,2]
[388412433,1759161031547,-300.0,0.00016652,2]
[388412436,1759161031558,-195.0,0.00016654,2]
[388412437,1759161031568,-500.0,0.00016655,2]
[388412438,1759161031579,-571.2015385,0.00016655,2]
[388412439,1759161031589,-150.0,0.00016668,2]
[388412440,1759161031599,-150.0,0.00016677,2]
[388412441,1759161031610,-150.0,0.00016677,2]
[388412442,1759161031621,-150.0,0.00016703,2]
[388412443,1759161031631,-150.0,0.00016703,2]
[388412444,1759161031641,-150.0,0.00016725,2]
[388412445,1759161031651,-150.0,0.00016744,2]
[388412446,1759161031662,-150.0,0.00016774,2]
[388412447,1759161031672,-150.0,0.00016774,2]
[388412448,1759161031682,-150.0,0.00016774,2]
[388412449,1759161031693,-150.0,0.00016816,2]
[388412450,1759161031703,-150.0,0.00016832,2]
[388412451,1759161031714,-150.0,0.00016832,2]
[388412452,1759161031724,-274.56606223,0.00016851,2]
[388412453,1759161031736,-1200.0,0.00016855,2]
[388412454,1759161031746,-150.0,0.00016856,2]
[388412455,1759161031757,-274.56606223,0.00016856,2]
[388412456,1759161031768,-274.56606223,0.00016862,2]
[388412457,1759161031779,-274.56606223,0.00016867,2]
[388412458,1759161031789,-170.56,0.00016868,2]
[388412459,1759161031800,-274.56606223,0.00016873,2]
[388412460,1759161031810,-274.56606223,0.00016878,2]
[388412462,1759161031823,-150.0,0.0001688,2]
[388412464,1759161031833,-274.56606223,0.00016884,2]
[388412467,1759161031844,-274.56606223,0.00016889,2]
[388412469,1759161031854,-151.0,0.0001689,2]
[388412471,1759161031864,-200.0,0.0001689,2]
[388412473,1759161031874,-151.0,0.0001689,2]
[388412475,1759161031884,-300.47221972,0.0001689,2]
[388412477,1759161031894,-210.00811648,0.0001689,2]
[388412479,1759161031905,-500.0,0.0001689,2]
[388412481,1759161031915,-500.0,0.0001689,2]
[388412483,1759161031925,-454.93264243,0.0001689,2]
[388412486,1759161031934,-203.57323302,0.0001689,2]
[388412488,1759161031945,-2500.0,0.0001689,2]
[388412491,1759161031955,-274.56606223,0.00016895,2]
[388412494,1759161031966,-550.0,0.00016899,2]
[388412497,1759161031976,-1000.0,0.000169,2]
[388412499,1759161031988,-166.54695848,0.000169,2]
[388412501,1759161031998,-2414.794,0.000169,2]
[388412503,1759161032008,-174.685,0.000169,2]
[388412505,1759161032018,-304.2757,0.000169,2]
[388412507,1759161032028,-165595.86369875,0.000169,2]
[388412513,1759161032075,-9185.48658541,0.000169,2]
[388412515,1759161032085,-274.56606223,0.000169,2]
[388412517,1759161032097,-422.30781875,0.000169,2]
[388412519,1759161032106,-763.25364845,0.00016951,2]
[388412521,1759161032117,-223.03,0.00016976,2]
[388412523,1759161032129,-1119.96,0.00016976,2]
[388412525,1759161032139,-150.0,0.00016986,2]
[388412527,1759161032149,-150.0,0.00016986,2]
[388412529,1759161032158,-150.0,0.00016986,2]
[388412531,1759161032168,-150.0,0.00016986,2]
[388412533,1759161032177,-150.0,0.00016986,2]
[388412535,1759161032187,-150.0,0.00016986,2]
[388412536,1759161032197,-150.0,0.00016986,2]
[388412538,1759161032207,-244.98311025,0.00016986,2]
[388412539,1759161032217,-150.0,0.00016986,2]
[388412540,1759161032227,-156.90048431,0.00016986,2]
[388412541,1759161032239,-150.0,0.00016986,2]
[388412542,1759161032250,-150.0,0.00016986,2]
[388412543,1759161032272,-150.0,0.00016986,2]
[388412544,1759161032285,-150.0,0.00016986,2]
[388412545,1759161032296,-151.0,0.00016997,2]
[388412546,1759161032306,-922.27102938,0.00016998,2]
[388412547,1759161032317,-5386.3628021,0.00016999,2]
[388412548,1759161032327,-12190.623657,0.00016999,2]
[388412549,1759161032339,-22539.25480265,0.00016999,2]
[388412550,1759161032353,-8033.05207444,0.00016999,2]
[388412551,1759161032365,-1934.57660971,0.00016999,2]
[388412553,1759161032490,-184.74537406,0.00016899,2]
[388412554,1759161032500,-257.5954216,0.00016899,2]
[388412555,1759161032510,-961.50646039,0.00016999,2]
[388412556,1759161032523,-85833.20503402,0.00016999,2]
[388412566,1759161037401,-197.6847583,0.00016899,2]
[388412567,1759161037414,-194.42357508,0.0001699,2]
[388412568,1759161037427,-103.04138482,0.0001699,2]
[388412569,1759161037532,-91.38219026,0.0001699,2]
[388412570,1759161037546,-194.42357508,0.0001699,2]
[388412571,1759161037559,-47.23145596,0.00016999,2]
[388412572,1759161037576,-459.0543291,0.00016999,2]
[388412573,1759161037643,-123186.74426373,0.00016999,2]
[388412574,1759161037656,-300.0,0.00016999,2]
[388412575,1759161037669,-10000.0,0.00016999,2]
[388412576,1759161037682,-300.0,0.00016999,2]
[388412577,1759161037695,-150.0,0.00016999,2]
[388412578,1759161037708,-300.0,0.00016999,2]
[388412579,1759161037721,-666.0,0.00016999,2]
[388412580,1759161037733,-300.0,0.00016999,2]
[388412582,1759161037747,-568447.86104,0.00017,2]
[388412585,1759161037759,-2103427.29733446,0.00017,2]
[388412587,1759161037774,-364.73999997,0.00017,2]
[388412590,1759161037789,-505.47,0.00017,2]
[388412762,1759161039450,-2018705.7910149,0.00017,2]
[388412764,1759161039463,-250.0,0.00017,2]
[388412766,1759161039475,-3702132.45678443,0.00017,2]
[388412778,1759161039577,-1245.45841385,0.00017,2]
[388412780,1759161039593,-28704.59097151,0.00017,2]
[388412783,1759161039607,-151.0,0.00017,2]
[388412785,1759161039620,-151.0,0.00017,2]
[388412787,1759161039633,-152.714069,0.00017,2]
[388412790,1759161039645,-152.714069,0.00017,2]
[388412792,1759161039657,-151.0,0.00017,2]
[388412795,1759161039670,-152.714069,0.00017,2]
[388412797,1759161039682,-152.714069,0.00017,2]
[388412799,1759161039695,-197.089749,0.00017,2]
[388412802,1759161039709,-197.089749,0.00017,2]
[388412804,1759161039721,-197.089749,0.00017,2]
[388412806,1759161039734,-197.089749,0.00017,2]
[388412809,1759161039749,-176.256432,0.00017,2]
[388412811,1759161039761,-151.0,0.00017,2]
[388412814,1759161039773,-151.0,0.00017,2]
[388412816,1759161039785,-151.0,0.00017,2]
[388412818,1759161039797,-151.0,0.00017,2]
[388412821,1759161039809,-151.0,0.00017,2]
[388412823,1759161039821,-151.0,0.00017,2]
[388412825,1759161039834,-151.0,0.00017,2]
[388412828,1759161039847,-166.001656,0.00017,2]
[388412830,1759161039861,-166.001656,0.00017,2]
[388412833,1759161039873,-166.001656,0.00017,2]
[388412835,1759161039886,-166.001656,0.00017,2]
[388412837,1759161039899,-151.0,0.00017,2]
[388412840,1759161039912,-218.368283,0.00017,2]
[388412842,1759161039925,-151.0,0.00017,2]
[388412844,1759161039937,-151.0,0.00017,2]
[388412846,1759161039950,-330.51971,0.00017,2]
[388412849,1759161039963,-330.51971,0.00017,2]
[388412851,1759161039975,-330.51971,0.00017,2]
[388412854,1759161039987,-330.51971,0.00017,2]
[388412856,1759161040000,-270.080505,0.00017,2]
[388412860,1759161040013,-151.0,0.00017,2]
[388412864,1759161040027,-151.0,0.00017,2]
[388412867,1759161040040,-151.0,0.00017,2]
[388412872,1759161040058,-151.0,0.00017,2]
[388412873,1759161040071,-151.0,0.00017,2]
[388412874,1759161040084,-151.0,0.00017,2]
[388412875,1759161040099,-151.0,0.00017,2]
[388412876,1759161040112,-151.0,0.00017,2]
[388412877,1759161040127,-151.0,0.00017,2]
[388412878,1759161040143,-151.0,0.00017,2]
[388412879,1759161040157,-151.0,0.00017,2]
[388412880,1759161040171,-256.458652,0.00017,2]
[388412881,1759161040183,-151.0,0.00017,2]
[388412882,1759161040197,-151.0,0.00017,2]
[388412883,1759161040209,-151.0,0.00017,2]
[388412884,1759161040222,-151.0,0.00017,2]
[388412885,1759161040236,-151.0,0.00017,2]
[388412886,1759161040256,-151.0,0.00017,2]
[388412889,1759161040268,-151.0,0.00017,2]
[388412891,1759161040281,-151.0,0.00017,2]
[388412893,1759161040294,-151.0,0.00017,2]
[388412895,1759161040307,-151.0,0.00017,2]
[388412898,1759161040319,-151.0,0.00017,2]
[388412900,1759161040331,-151.0,0.00017,2]
[388412902,1759161040344,-151.0,0.00017,2]
[388412904,1759161040355,-151.0,0.00017,2]
[388412907,1759161040368,-151.0,0.00017,2]
[388412909,1759161040380,-151.0,0.00017,2]
[388412911,1759161040392,-151.0,0.00017,2]
[388412914,1759161040406,-151.0,0.00017,2]
[388412916,1759161040418,-151.0,0.00017,2]
[388412918,1759161040430,-152.081862,0.00017,2]
[388412921,1759161040442,-151.0,0.00017,2]
[388412923,1759161040455,-151.201636,0.00017,2]
[388412925,1759161040467,-151.0,0.00017,2]
[388412928,1759161040479,-151.0,0.00017,2]
[388412930,1759161040495,-286.786705,0.00017,2]
[388412932,1759161040508,-151.0,0.00017,2]
[388412935,1759161040521,-151.0,0.00017,2]
[388412937,1759161040534,-151.0,0.00017,2]
[388412939,1759161040547,-151.0,0.00017,2]
[388412942,1759161040559,-151.0,0.00017,2]
[388412944,1759161040572,-151.0,0.00017,2]
[388412946,1759161040585,-151.0,0.00017,2]
[388412949,1759161040597,-151.0,0.00017,2]
[388412951,1759161040610,-151.0,0.00017,2]
[388412953,1759161040623,-151.0,0.00017,2]
[388412956,1759161040635,-151.0,0.00017,2]
[388412958,1759161040647,-151.0,0.00017,2]
[388412960,1759161040659,-258.774584,0.00017,2]
[388412962,1759161040671,-151.0,0.00017,2]
[388412965,1759161040683,-151.0,0.00017,2]
[388412967,1759161040695,-151.0,0.00017,2]
[388412969,1759161040707,-151.0,0.00017,2]
[388412972,1759161040719,-151.0,0.00017,2]
[388412974,1759161040731,-151.0,0.00017,2]
[388412976,1759161040745,-151.0,0.00017,2]
[388412978,1759161040758,-151.0,0.00017,2]
[388412981,1759161040770,-151.0,0.00017,2]
[388412983,1759161040784,-151.0,0.00017,2]
[388412985,1759161040796,-268.95595,0.00017,2]
[388412988,1759161040808,-268.95595,0.00017,2]
[388412990,1759161040820,-268.95595,0.00017,2]
[388412992,1759161040832,-268.95595,0.00017,2]
[388412995,1759161040845,-151.0,0.00017,2]
[388412997,1759161040857,-284.766161,0.00017,2]
[388412999,1759161040870,-151.0,0.00017,2]
[388413002,1759161040883,-203.841144,0.00017,2]
[388413004,1759161040895,-151.0,0.00017,2]
[388413006,1759161040908,-151.0,0.00017,2]
[388413009,1759161040921,-236.641302,0.00017,2]
[388413011,1759161040933,-151.0,0.00017,2]
[388413014,1759161040948,-151.0,0.00017,2]
[388413016,1759161040961,-151.0,0.00017,2]
[388413018,1759161040975,-151.0,0.00017,2]
[388413160,1759161042342,-151.0,0.00017,2]
[388413166,1759161042390,-403.149102,0.00017,2]
[388413172,1759161042419,-151.0,0.00017,2]
[388413177,1759161042454,-403.149102,0.00017,2]
[388413181,1759161042479,-151.0,0.00017,2]
[388413184,1759161042489,-173.358727,0.00017,2]
[388413187,1759161042501,-151.0,0.00017,2]
[388413188,1759161042517,-403.149102,0.00017,2]
[388413192,1759161042526,-403.149102,0.00017,2]
[388413194,1759161042536,-209.622644,0.00017,2]
[388413196,1759161042545,-151.0,0.00017,2]
[388413198,1759161042555,-232.971961,0.00017,2]
[388413200,1759161042564,-151.0,0.00017,2]
[388413202,1759161042574,-232.971961,0.00017,2]
[388413204,1759161042584,-232.971961,0.00017,2]
[388413207,1759161042593,-232.971961,0.00017,2]
[388413209,1759161042603,-151.0,0.00017,2]
[388413211,1759161042616,-151.0,0.00017,2]
[388413213,1759161042626,-151.0,0.00017,2]
[388413215,1759161042635,-151.0,0.00017,2]
[388413217,1759161042645,-151.0,0.00017,2]
[388413219,1759161042655,-151.0,0.00017,2]
[388413221,1759161042665,-151.0,0.00017,2]
[388413223,1759161042674,-151.0,0.00017,2]
[388413225,1759161042684,-599.418972,0.00017,2]
[388413227,1759161042693,-194.342906,0.00017,2]
[388413229,1759161042703,-599.418972,0.00017,2]
[388413231,1759161042713,-194.342906,0.00017,2]
[388413233,1759161042722,-599.418972,0.00017,2]
[388413235,1759161042732,-151.0,0.00017,2]
[388413237,1759161042743,-194.342906,0.00017,2]
[388413239,1759161042753,-599.418972,0.00017,2]
[388413241,1759161042762,-194.342906,0.00017,2]
[388413243,1759161042772,-226.833572,0.00017,2]
[388413245,1759161042782,-151.0,0.00017,2]
[388413247,1759161042791,-151.0,0.00017,2]
[388413249,1759161042801,-151.0,0.00017,2]
[388413251,1759161042810,-151.0,0.00017,2]
[388413253,1759161042820,-252.244231,0.00017,2]
[388413255,1759161042830,-151.0,0.00017,2]
[388413257,1759161042839,-280.364528,0.00017,2]
[388413259,1759161042849,-151.0,0.00017,2]
[388413261,1759161042859,-229.269182,0.00017,2]
[388413263,1759161042868,-164.854692,0.00017,2]
[388413265,1759161042878,-280.364528,0.00017,2]
[388413267,1759161042887,-229.269182,0.00017,2]
[388413269,1759161042896,-151.0,0.00017,2]
[388413271,1759161042906,-229.269182,0.00017,2]
[388413273,1759161042915,-280.364528,0.00017,2]
[388413275,1759161042924,-229.269182,0.00017,2]
[388413277,1759161042935,-280.364528,0.00017,2]
[388413279,1759161042944,-151.0,0.00017,2]
[388413281,1759161042955,-164.854692,0.00017,2]
[388413283,1759161042965,-151.0,0.00017,2]
[388413285,1759161042975,-151.0,0.00017,2]
[388413287,1759161042984,-151.0,0.00017,2]
[388413290,1759161042995,-164.854692,0.00017,2]
[388413291,1759161043004,-2080.158309,0.00017,2]
[388413294,1759161043014,-164.854692,0.00017,2]
[388413296,1759161043025,-2080.158309,0.00017,2]
[388413298,1759161043035,-2080.158309,0.00017,2]
[388413300,1759161043046,-2080.158309,0.00017,2]
[388413302,1759161043056,-151.0,0.00017,2]
[388413304,1759161043069,-151.0,0.00017,2]
[388413306,1759161043079,-556.691312,0.00017,2]
[388413308,1759161043089,-556.691312,0.00017,2]
[388413310,1759161043099,-151.0,0.00017,2]
[388413312,1759161043109,-151.0,0.00017,2]
[388413314,1759161043119,-151.0,0.00017,2]
[388413316,1759161043128,-151.0,0.00017,2]
[388413318,1759161043140,-151.0,0.00017,2]
[388413320,1759161043150,-159.499636,0.00017,2]
[388413323,1759161043162,-151.0,0.00017,2]
[388413325,1759161043172,-151.0,0.00017,2]
[388413327,1759161043181,-151.0,0.00017,2]
[388413329,1759161043191,-151.0,0.00017,2]
[388413331,1759161043201,-151.0,0.00017,2]
[388413333,1759161043211,-292.606462,0.00017,2]
[388413335,1759161043221,-151.0,0.00017,2]
[388413337,1759161043231,-151.0,0.00017,2]
[388413339,1759161043240,-151.0,0.00017,2]
[388413341,1759161043251,-151.0,0.00017,2]
[388413343,1759161043262,-151.0,0.00017,2]
[388413345,1759161043272,-151.0,0.00017,2]
[388413347,1759161043282,-151.0,0.00017,2]
[388413350,1759161043292,-208.667467,0.00017,2]
[388413352,1759161043302,-207.2316,0.00017,2]
[388413353,1759161043312,-151.0,0.00017,2]
[388413356,1759161043322,-151.0,0.00017,2]
[388413358,1759161043332,-151.0,0.00017,2]
[388413359,1759161043342,-151.0,0.00017,2]
[388413362,1759161043352,-151.0,0.00017,2]
[388413364,1759161043361,-151.0,0.00017,2]
[388413366,1759161043371,-151.0,0.00017,2]
[388413368,1759161043380,-151.0,0.00017,2]
[388413370,1759161043390,-151.0,0.00017,2]
[388413372,1759161043400,-505.502556,0.00017,2]
[388413374,1759161043410,-151.0,0.00017,2]
[388413376,1759161043421,-505.502556,0.00017,2]
[388413378,1759161043432,-505.502556,0.00017,2]
[388413380,1759161043442,-505.502556,0.00017,2]
[388413382,1759161043451,-151.0,0.00017,2]
[388413384,1759161043461,-151.0,0.00017,2]
[388413386,1759161043471,-814.259214,0.00017,2]
[388413388,1759161043480,-814.259214,0.00017,2]
[388413390,1759161043490,-814.259214,0.00017,2]
[388413392,1759161043501,-814.259214,0.00017,2]
[388413394,1759161043511,-398.208997,0.00017,2]
[388413396,1759161043521,-151.0,0.00017,2]
[388413398,1759161043530,-398.208997,0.00017,2]
[388413400,1759161043540,-182.060645,0.00017,2]
[388413402,1759161043550,-151.0,0.00017,2]
[388413404,1759161043560,-398.208997,0.00017,2]
[388413406,1759161043570,-151.0,0.00017,2]
[388413408,1759161043579,-182.060645,0.00017,2]
[388413410,1759161043589,-182.060645,0.00017,2]
[388413412,1759161043599,-398.208997,0.00017,2]
[388413414,1759161043609,-8810.959822,0.00017,2]
[388413416,1759161043618,-182.060645,0.00017,2]
[388413418,1759161043628,-8810.959822,0.00017,2]
[388413420,1759161043637,-2792.5930438,0.00017,2]
[388413423,1759161043654,-309.8985702,0.00017,2]
[388413425,1759161043664,-63.6658298,0.00017,2]
[388413427,1759161043675,-87.3341702,0.00017,2]
[388413429,1759161043685,-3102.491614,0.00017,2]
[388413431,1759161043695,-151.0,0.00017,2]
[388413433,1759161043705,-151.0,0.00017,2]
[388413435,1759161043714,-151.0,0.00017,2]
[388413436,1759161043724,-151.0,0.00017,2]
[388413437,1759161043733,-151.0,0.00017,2]
[388413438,1759161043744,-151.0,0.00017,2]
[388413439,1759161043753,-700.0,0.00017036,2]
[388413440,1759161043763,-300.0,0.00017146,2]
[388413441,1759161043773,-416.45095014,0.00017146,2]
[388413442,1759161043783,-2588.7786911,0.00017147,2]
[388413443,1759161043795,-770.289584,0.00017147,2]
[388413444,1759161043806,-2102.022559,0.00017147,2]
[388413445,1759161043817,-2033.69999999,0.00017147,2]
[388413446,1759161043829,-909.21,0.00017147,2]
[388413447,1759161043841,-571.92156,0.00017147,2]
[388413450,1759161043887,-1434.67340014,0.00017147,2]
[388413490,1759161044282,-19018.44112411,0.00017147,2]
[388413492,1759161044293,-1746.4484879,0.00017147,2]
[388413528,1759161044633,-1429.57753364,0.00016986,2]
[388413532,1759161044654,-880.79293202,0.00016986,2]
[388413536,1759161044685,-335.04991627,0.00016986,2]
[388413538,1759161044697,-489.29187735,0.00016986,2]
[388413541,1759161044720,-380.29774072,0.00016986,2]
[388413544,1759161044730,-1002.74900315,0.00017,2]
[388413546,1759161044742,-7808.21081885,0.00017,2]
[388413548,1759161044752,-3102.491614,0.00017,2]
[388413550,1759161044764,-1490.88014584,0.00017,2]
[388413801,1759161046996,-639.22380711,0.00017,2]
[388413804,1759161047010,-1330.47236798,0.00017,2]
[388413809,1759161047082,-3242.57543464,0.00017,2]
[388415027,1759161087541,1626.6,0.00015875,2]
[388415065,1759161134980,181.35,0.00025381,120]
[388415102,1759161189071,175.97,8.418e-05,2]
[388415171,1759161364575,666.0,0.00016476,3]
[388415184,1759161384705,194.39943741,0.00016552,2]
[388415260,1759161453223,1119.82,0.00016521,2]
[388415286,1759161509604,200.0,0.00016543,2]
[388415287,1759161510172,654.29,0.00016543,2]
[388415312,1759161526400,200.8,0.000256,120]
[388415424,1759161597159,230.3,0.00016506,2]
[388415439,1759161622772,1000.0,0.00016462,2]
[388415442,1759161644038,211.96288243,0.00016441,2]
[388415450,1759161691356,-1200.0,0.00016649,2]
[388415451,1759161691381,-550.0,0.00016649,2]
[388415452,1759161691407,-1000.0,0.00016696,2]
[388415453,1759161691432,-1000.0,0.0001676,2]
[388415454,1759161691465,-887.50793781,0.00016847,2]
[388415455,1759161691492,-150.0,0.00016857,2]
[388415463,1759161747007,150.0,0.00016572,7]
[388415504,1759161944432,1000.0,0.00016438,2]
[388415584,1759162024058,-700.0,0.00016869,2]
[388415585,1759162024087,-311.75960097,0.00016872,2]
[388415586,1759162024113,-356.54,0.00016895,2]
[388415587,1759162024138,-150.0,0.00016912,2]
[388415588,1759162024165,-150.0,0.00016916,2]
[388415589,1759162024192,-181.35,0.0001692,2]
[388415590,1759162024218,-164.17,0.00016948,2]
[388415591,1759162024243,-300.0,0.00016979,2]
[388415592,1759162024269,-1200.0,0.00016979,2]
[388415593,1759162024295,-300.0,0.00016979,2]
[388415594,1759162024327,-681.19778,0.0001698,2]
[388415595,1759162024361,-681.19778,0.0001698,2]
[388415596,1759162024386,-681.19778,0.0001698,2]
[388415597,1759162024411,-681.19778,0.0001698,2]
[388415598,1759162024440,-681.19778,0.0001698,2]
[388415599,1759162024482,-681.19778,0.0001698,2]
[388415600,1759162024508,-3178.67239,0.0001698,2]
[388415601,1759162024534,-3178.67239,0.0001698,2]
[388415602,1759162024558,-300.0,0.00016999,2]
[388415603,1759162024583,-666.0,0.00016999,2]
[388415604,1759162024610,-2000.0,0.00017,2]
[388415605,1759162024636,-1397.046,0.00017,2]
[388415606,1759162024660,-1000.0,0.00017,2]
[388415607,1759162024683,-735.093,0.00017,2]
[388415608,1759162024707,-250.0,0.00017,2]
[388415609,1759162024731,-150.0,0.00017035,2]
[388415610,1759162024759,-500.0,0.00017038,2]
[388415611,1759162024787,-500.0,0.00017038,2]
[388415612,1759162024817,-500.0,0.00017038,2]
[388415613,1759162024846,-500.0,0.00017038,2]
[388415614,1759162024875,-500.0,0.00017038,2]
[388415615,1759162024905,-294.23036495,0.00017038,2]
[388415616,1759162024936,-500.0,0.00017038,2]
[388415617,1759162024965,-500.0,0.00017038,2]
[388415618,1759162024994,-500.0,0.00017038,2]
[388415619,1759162025023,-500.0,0.00017038,2]
[388415620,1759162025051,-500.0,0.00017038,2]
[388415621,1759162025081,-500.0,0.00017038,2]
[388415622,1759162025110,-500.0,0.00017038,2]
[388415623,1759162025141,-500.0,0.00017038,2]
[388415624,1759162025170,-500.0,0.00017038,2]
[388415625,1759162025199,-500.0,0.00017038,2]
[388415626,1759162025228,-500.0,0.00017038,2]
[388415627,1759162025256,-500.0,0.00017038,2]
[388415628,1759162025281,-244.53193848,0.00017038,2]
[388415629,1759162025316,-500.0,0.00017038,2]
[388415630,1759162025351,-350.0,0.00017038,2]
[388415631,1759162025379,-277.21,0.00017038,2]
[388415632,1759162025409,-52098.7681851,0.00017039,2]
[388415633,1759162025435,-1201.87893351,0.00017055,2]
[388415634,1759162025461,-180.31679512,0.00017055,2]
[388415635,1759162025487,-96775.1409944,0.00017056,2]
[388415636,1759162025511,-1715.7482797,0.00017056,2]
[388415637,1759162025537,-3836.1211725,0.00017056,2]
[388415638,1759162025563,-1470.0312078,0.00017056,2]
[388415639,1759162025592,-3169.2438615,0.00017056,2]
[388415640,1759162025618,-150.0,0.00017069,2]
[388415641,1759162025643,-150.0,0.00017097,2]
[388415642,1759162025668,-150.0,0.00017107,2]
[388415643,1759162025693,-1575.97518664,0.0001712,2]
[388415644,1759162025717,-1425.0,0.00017126,2]
[388415645,1759162025741,-25179.31301933,0.00017147,2]
[388415646,1759162044543,321.0,0.000164,2]
[388415896,1759162162752,176.03,0.00025517,120]
[388416001,1759162231960,-401.08012471,0.000168,2]
[388416002,1759162231981,-300.04637907,0.000168,2]
[388416003,1759162231991,-176.03,0.00017011,2]
[388416004,1759162232001,-315.59,0.00017016,2]
[388416005,1759162232013,-200.0,0.00017046,2]
[388416006,1759162232024,-151.0,0.00017046,2]
[388416007,1759162232035,-151.0,0.00017046,2]
[388416008,1759162232046,-151.0,0.00017046,2]
[388416009,1759162232056,-135.98965114,0.00017046,2]